bitfinex/quotes_BTCUSD_20250131
["timestamp","ask_amount","ask_price","bid_price","bid_amount"]
[1738351411393,0.008,102290.0,102280.0,0.10834272]
[1738351411618,0.009,102290.0,102280.0,0.11034272]
[1738351411838,0.009,102290.0,102280.0,0.15559624]
[1738351412290,0.155641,102290.0,102280.0,0.32559624]
[1738351412521,0.155641,102290.0,102280.0,0.32461878]
[1738351412715,0.155641,102290.0,102280.0,0.27161878]
[1738351413198,0.155641,102290.0,102280.0,0.29461878]
[1738351413420,0.155641,102290.0,102280.0,0.31461878]
[1738351414072,0.155641,102290.0,102280.0,0.14461878]
[1738351414259,0.155641,102290.0,102280.0,0.1455963]
[1738351414462,0.155641,102290.0,102280.0,0.1655963]
[1738351414672,0.155641,102290.0,102280.0,0.1455963]
[1738351414998,0.155641,102290.0,102280.0,0.1555963]
[1738351415195,0.155641,102290.0,102280.0,0.1225963]
[1738351415656,1.11047725,102290.0,102280.0,0.02437562]
[1738351416063,1.11047725,102290.0,102280.0,0.00309966]
[1738351416279,1.11047725,102290.0,102280.0,0.0021221]
[1738351416747,1.20772041,102290.0,102280.0,0.0021221]
[1738351416948,1.21516041,102290.0,102280.0,0.0021221]
[1738351417397,1.11817345,102290.0,102280.0,0.0021221]
[1738351417850,1.11817345,102290.0,102280.0,0.00854888]
[1738351418277,0.1558972,102290.0,102280.0,0.00952651]
[1738351418518,0.1633372,102290.0,102280.0,0.00952651]
[1738351418953,0.1623372,102290.0,102280.0,0.00752651]
[1738351419369,0.1633372,102290.0,102280.0,0.00852651]
[1738351419621,0.1558972,102290.0,102280.0,0.00852651]
[1738351419860,0.1548972,102290.0,102280.0,0.00752651]
[1738351420618,0.1548972,102290.0,102280.0,0.00852651]
[1738351421118,0.1548972,102290.0,102280.0,0.00754888]
[1738351421616,0.00245112,102280.0,102270.0,0.00989244]
[1738351421806,0.00245112,102280.0,102270.0,0.0483031]
[1738351422368,0.00245112,102280.0,102270.0,0.04732555]
[1738351422577,0.00245112,102280.0,102270.0,0.04830315]
[1738351422783,0.00345112,102280.0,102270.0,0.04978322]
[1738351423196,0.00245112,102280.0,102270.0,0.16902638]
[1738351423590,0.00245112,102280.0,102270.0,0.17002638]
[1738351423792,0.00245112,102280.0,102270.0,0.16904878]
[1738351424484,0.00245112,102280.0,102270.0,0.1700263]
[1738351424845,0.00245112,102280.0,102270.0,0.1690263]
[1738351425279,0.00345112,102280.0,102270.0,0.1690263]
[1738351427203,0.95828737,102280.0,102270.0,0.03803568]
[1738351427421,0.95828737,102280.0,102270.0,0.00060257]
[1738351428035,0.00345112,102280.0,102270.0,0.00158028]
[1738351428246,0.95828737,102280.0,102270.0,0.00158028]
[1738351428452,0.95728737,102280.0,102270.0,0.00158028]
[1738351428876,0.95728737,102280.0,102270.0,0.00060257]
[1738351429281,0.95728737,102280.0,102270.0,0.00158026]
[1738351429512,0.95728737,102280.0,102270.0,0.00060257]
[1738351429723,0.95828737,102280.0,102270.0,0.00060257]
[1738351431970,1.05553053,102280.0,102270.0,0.00060257]
[1738351432591,1.05453053,102280.0,102270.0,0.00060257]
[1738351434236,1.10133053,102280.0,102270.0,0.00060257]
[1738351435383,1.18113053,102280.0,102270.0,0.00060257]
[1738351435619,1.18857053,102280.0,102270.0,5.7e-07]
[1738351435804,1.33522653,102280.0,102270.0,5.7e-07]
[1738351436004,1.32778653,102280.0,102270.0,5.7e-07]
[1738351436216,1.33122653,102280.0,102270.0,5.7e-07]
[1738351436444,1.33722653,102280.0,102270.0,5.7e-07]
[1738351436778,1.32978653,102280.0,102270.0,5.7e-07]
[1738351437012,1.33722653,102280.0,102270.0,5.7e-07]
[1738351437701,1.33122653,102280.0,102270.0,5.7e-07]
[1738351437824,1.10394337,102280.0,102270.0,5.7e-07]
[1738351438030,1.11638337,102280.0,102270.0,5.7e-07]
[1738351438497,1.11138337,102280.0,102270.0,5.7e-07]
[1738351438711,1.11138337,102280.0,102270.0,0.00097829]
[1738351438850,1.11538337,102280.0,102270.0,0.00097829]
[1738351439314,1.10794337,102280.0,102270.0,0.12122145]
[1738351439488,1.10794337,102280.0,102270.0,0.16192974]
[1738351439897,1.10794337,102280.0,102270.0,0.0426642]
[1738351440104,1.10794337,102280.0,102270.0,0.04266426]
[1738351440306,1.10794337,102280.0,102270.0,0.04168658]
[1738351440640,1.10794337,102280.0,102270.0,5.7e-07]
[1738351441665,1.20518653,102280.0,102270.0,0.00012267]
[1738351441920,1.20544295,102280.0,102270.0,0.00012267]
[1738351442340,1.20144295,102280.0,102270.0,0.00012267]
[1738351442692,1.20644295,102280.0,102270.0,0.00012267]
[1738351444581,1.20144295,102280.0,102270.0,0.00012267]
[1738351444773,1.43774295,102280.0,102270.0,0.00012267]
[1738351445224,1.43274295,102280.0,102270.0,0.00012267]
[1738351445642,1.43874295,102280.0,102270.0,0.00012267]
[1738351446847,1.43274295,102280.0,102270.0,0.00012267]
[1738351447224,1.43874295,102280.0,102270.0,0.00012267]
[1738351448474,1.48814295,102280.0,102270.0,0.00012267]
[1738351448951,1.54517957,102280.0,102270.0,0.00012267]
[1738351449626,0.126,102270.0,102260.0,0.28563867]
[1738351449873,0.24324316,102270.0,102260.0,0.28563867]
[1738351451080,0.15178316,102270.0,102260.0,0.31421477]
[1738351451337,0.15178316,102270.0,102260.0,0.28563867]
[1738351452359,0.30178316,102270.0,102260.0,0.28563867]
[1738351452618,0.38038316,102270.0,102260.0,0.28563867]
[1738351452827,0.38538316,102270.0,102260.0,0.28563867]
[1738351453267,0.37294316,102270.0,102260.0,0.28563867]
[1738351453475,0.46595942,102270.0,102260.0,0.28563867]
[1738351453683,0.47295942,102270.0,102260.0,0.28563867]
[1738351454954,0.46595942,102270.0,102260.0,0.28563867]
[1738351455343,0.47295942,102270.0,102260.0,0.28563867]
[1738351456164,0.38738316,102270.0,102260.0,0.28563867]
[1738351457444,0.38738316,102270.0,102260.0,0.1001224]
[1738351457888,0.41441978,102270.0,102260.0,0.1001224]
[1738351458549,0.38738316,102270.0,102260.0,0.1001224]
[1738351458965,0.39738316,102270.0,102260.0,0.1001224]
[1738351460220,0.38738316,102270.0,102260.0,0.1001224]
[1738351460851,0.39738316,102270.0,102260.0,0.1001224]
[1738351461034,0.42441978,102270.0,102260.0,0.1001224]
[1738351461446,0.48358178,102270.0,102260.0,0.1001224]
[1738351461830,0.46358178,102270.0,102260.0,0.1001224]
[1738351462027,0.48358178,102270.0,102260.0,0.1001224]
[1738351462492,0.50632017,102270.0,102260.0,0.1001224]
[1738351462863,0.48358178,102270.0,102260.0,0.1001224]
[1738351463256,0.45358178,102270.0,102260.0,0.1001224]
[1738351463452,0.41910516,102270.0,102260.0,0.1001224]
[1738351463658,0.42654516,102270.0,102260.0,0.1001224]
[1738351464076,0.15084516,102270.0,102260.0,0.1001224]
[1738351464284,0.10424316,102270.0,102260.0,0.1001224]
[1738351464808,0.18981942,102270.0,102260.0,0.1001224]
[1738351465022,0.19725942,102270.0,102260.0,0.1001224]
[1738351465229,0.18981942,102270.0,102260.0,0.11014687]
[1738351465426,0.19725942,102270.0,102260.0,0.11014687]
[1738351465901,0.19751584,102270.0,102260.0,0.11014687]
[1738351466075,0.19007584,102270.0,102260.0,0.11014687]
[1738351466261,0.19751584,102270.0,102260.0,0.11014687]
[1738351468098,0.11193958,102270.0,102260.0,0.11014687]
[1738351468555,0.10493958,102270.0,102260.0,0.11014687]
[1738351468885,0.11093958,102270.0,102260.0,0.1001224]
[1738351469314,0.10493958,102270.0,102260.0,0.1001224]
[1738351469532,0.11093958,102270.0,102260.0,0.1001224]
[1738351470828,0.10349958,102270.0,102260.0,0.1001224]
[1738351471046,0.11093958,102270.0,102260.0,0.1001224]
[1738351471267,0.11093958,102270.0,102260.0,0.11014687]
[1738351471935,0.11093958,102270.0,102260.0,0.1001224]
[1738351472585,0.10349958,102270.0,102260.0,0.1001224]
[1738351472772,0.11089958,102270.0,102260.0,0.1001224]
[1738351473977,0.10349958,102270.0,102260.0,0.1001224]
[1738351474183,0.11089958,102270.0,102260.0,0.1001224]
[1738351474391,0.11089958,102270.0,102260.0,0.11014687]
[1738351475325,0.00625642,102270.0,102260.0,0.11014687]
[1738351475551,0.01365642,102270.0,102260.0,0.11014687]
[1738351476321,0.00765642,102270.0,102260.0,0.11014687]
[1738351476694,0.01265642,102270.0,102260.0,0.11014687]
[1738351476909,0.00525642,102270.0,102260.0,0.23934687]
[1738351477805,0.00525642,102270.0,102260.0,0.35959003]
[1738351478030,0.09383246,102290.0,102270.0,0.1218]
[1738351478256,0.09383246,102290.0,102280.0,0.24302063]
[1738351478468,0.09383246,102290.0,102280.0,0.25204316]
[1738351478684,0.09383246,102290.0,102280.0,0.24204316]
[1738351478902,0.09383246,102290.0,102280.0,0.1218]
[1738351479114,0.09383246,102290.0,102280.0,0.13877947]
[1738351479567,0.09383246,102290.0,102280.0,0.23602263]
[1738351479799,0.09383246,102290.0,102280.0,0.25804506]
[1738351480009,0.0082562,102290.0,102280.0,0.25804506]
[1738351480893,0.0082562,102290.0,102280.0,0.28804506]
[1738351481364,0.02,102300.0,102290.0,0.1648]
[1738351481578,0.08557626,102310.0,102300.0,0.1518]
[1738351481803,0.08557626,102310.0,102300.0,0.27302037]
[1738351482027,0.0002562,102330.0,102320.0,0.0766]
[1738351482244,0.0002562,102330.0,102320.0,0.08426]
[1738351482690,0.0002562,102330.0,102320.0,0.25010316]
[1738351482874,0.00040043,102330.0,102320.0,0.25010316]
[1738351483358,0.00040043,102330.0,102320.0,0.28010316]
[1738351483576,0.00025704,102340.0,102330.0,0.053]
[1738351483790,0.00025704,102340.0,102330.0,0.3396134]
[1738351484016,0.00025704,102340.0,102330.0,0.31863663]
[1738351484229,0.00025704,102340.0,102330.0,0.30863663]
[1738351484651,0.00025704,102350.0,102330.0,0.30863663]
[1738351484870,0.00025704,102350.0,102340.0,0.17424316]
[1738351485118,0.00025704,102350.0,102340.0,0.37373363]
[1738351485325,0.00025704,102350.0,102340.0,0.22575682]
[1738351486413,0.00025704,102350.0,102340.0,0.10551366]
[1738351486630,0.00025704,102350.0,102320.0,0.08796]
[1738351486843,0.0975002,102350.0,102320.0,0.08796]
[1738351487079,0.0985002,102350.0,102330.0,0.007]
[1738351487708,0.0975002,102350.0,102320.0,0.08796]
[1738351488041,0.0074,102340.0,102320.0,0.08993719]
[1738351488253,0.95483625,102340.0,102320.0,0.08993719]
[1738351488457,0.00025704,102350.0,102320.0,0.08993719]
[1738351488640,0.00025704,102350.0,102330.0,0.0982203]
[1738351488844,0.00025704,102350.0,102340.0,0.10537684]
[1738351489003,0.00025704,102350.0,102340.0,0.24764316]
[1738351489409,0.00525704,102350.0,102340.0,0.26764316]
[1738351490000,0.00025704,102350.0,102340.0,0.26776516]
[1738351490221,0.00025704,102350.0,102340.0,0.41876516]
[1738351490421,0.00025704,102350.0,102340.0,0.49771558]
[1738351490622,0.00025704,102350.0,102340.0,0.49671558]
[1738351490897,0.0099782,102370.0,102350.0,0.03]
[1738351491109,0.01012237,102370.0,102360.0,0.20431971]
[1738351491331,0.01012237,102370.0,102360.0,0.22677513]
[1738351491506,0.01012237,102370.0,102360.0,0.24677513]
[1738351493322,0.01112237,102370.0,102360.0,0.24677513]
[1738351494306,0.01012237,102370.0,102360.0,0.24677513]
[1738351494730,0.01112237,102370.0,102360.0,0.28080364]
[1738351494954,0.01112237,102370.0,102360.0,0.62534464]
[1738351495902,0.01112237,102370.0,102360.0,0.65030264]
[1738351496528,0.01112237,102370.0,102360.0,0.65091123]
[1738351496748,0.01112237,102370.0,102360.0,0.62534464]
[1738351497125,0.01112237,102370.0,102360.0,0.49437023]
[1738351497307,0.01112237,102370.0,102360.0,0.45880364]
[1738351497900,0.01112237,102370.0,102360.0,0.27580364]
[1738351498311,0.01112237,102370.0,102360.0,0.29880364]
[1738351498513,0.01112237,102370.0,102360.0,0.27580364]
[1738351498988,0.01112237,102370.0,102360.0,0.29880364]
[1738351499600,0.01112237,102370.0,102360.0,0.29280364]
[1738351499601,0.01012237,102370.0,102360.0,0.29280364]
[1738351499801,0.01012237,102370.0,102360.0,0.31280364]
[1738351500172,0.01012237,102370.0,102360.0,0.26980364]
[1738351500576,0.01012237,102370.0,102360.0,0.29280364]
[1738351500972,0.01112237,102370.0,102360.0,0.29980364]
[1738351502147,0.01012237,102370.0,102360.0,0.22180364]
[1738351502610,0.01112237,102370.0,102360.0,0.25080364]
[1738351503040,0.01112237,102370.0,102360.0,0.97280364]
[1738351503207,0.01112237,102370.0,102360.0,1.01820364]
[1738351503634,0.01112237,102370.0,102360.0,1.00820364]
[1738351503778,0.01112237,102370.0,102360.0,0.98820364]
[1738351503971,0.01012237,102370.0,102360.0,1.00220364]
[1738351504709,0.01012237,102370.0,102360.0,0.46020364]
[1738351505377,0.01112237,102370.0,102360.0,0.46720364]
[1738351505960,0.00143266,102370.0,102360.0,0.46720364]
[1738351506728,0.00143266,102370.0,102360.0,0.47720364]
[1738351508722,0.00143266,102370.0,102360.0,1.01920364]
[1738351508931,0.00025642,102380.0,102360.0,1.01920364]
[1738351509171,0.00025642,102380.0,102370.0,0.09821965]
[1738351509404,0.00025642,102380.0,102370.0,0.19557641]
[1738351510595,0.00025642,102380.0,102370.0,0.77057641]
[1738351510783,0.00025642,102380.0,102370.0,0.76959992]
[1738351510992,0.00025642,102380.0,102370.0,0.75959992]
[1738351511361,0.00025642,102380.0,102370.0,0.76959992]
[1738351511549,0.00025642,102380.0,102370.0,0.75462843]
[1738351511966,0.00025642,102380.0,102370.0,0.77762843]
[1738351512603,0.00025642,102380.0,102370.0,1.00652843]
[1738351512811,0.00025642,102380.0,102370.0,1.08702843]
[1738351513235,0.00025642,102380.0,102370.0,1.23355543]
[1738351513673,0.00025642,102380.0,102370.0,1.22855543]
[1738351514095,0.00025642,102380.0,102370.0,1.23555543]
[1738351514498,0.00025642,102380.0,102370.0,1.22855543]
[1738351515529,0.00025642,102380.0,102370.0,1.23861299]
[1738351515729,0.00025642,102380.0,102370.0,1.24661299]
[1738351515927,0.00025642,102380.0,102370.0,1.43924868]
[1738351516525,0.00025642,102380.0,102370.0,1.24653114]
[1738351516719,0.00025725,102390.0,102380.0,0.428512]
[1738351516943,0.00025725,102390.0,102380.0,1.16511192]
[1738351517755,0.00025725,102390.0,102380.0,0.81574761]
[1738351518110,0.00025725,102390.0,102380.0,0.86434761]
[1738351518312,0.00025725,102390.0,102380.0,0.87345831]
[1738351518645,0.00025725,102390.0,102380.0,0.93146884]
[1738351518879,0.21878473,102400.0,102390.0,0.429398]
[1738351519092,0.21878473,102400.0,102390.0,0.52664116]
[1738351519664,0.20920485,102400.0,102390.0,0.71927685]
[1738351519858,0.15923517,102400.0,102390.0,0.52664116]
[1738351520056,0.15923517,102400.0,102390.0,0.51664116]
[1738351520304,0.15923517,102400.0,102390.0,0.53392444]
[1738351520591,0.15923517,102400.0,102390.0,0.61494155]
[1738351521028,0.09598477,102400.0,102390.0,0.63297006]
[1738351521274,0.09598477,102400.0,102390.0,0.82560575]
[1738351521742,0.09301862,102400.0,102390.0,0.83726282]
[1738351521974,0.0002562,102440.0,102410.0,0.48127]
[1738351522222,0.02025683,102450.0,102440.0,0.247327]
[1738351522223,0.02000063,102450.0,102440.0,0.247327]
[1738351522458,0.0002562,102480.0,102450.0,0.15]
[1738351522697,0.00040042,102480.0,102460.0,0.09724316]
[1738351522971,0.00040042,102480.0,102470.0,0.023]
[1738351523258,0.00040042,102480.0,102470.0,0.1212188]
[1738351523732,0.00040042,102480.0,102470.0,0.0982188]
[1738351523969,0.00040042,102480.0,102470.0,0.1212188]
[1738351524221,0.00040042,102480.0,102470.0,0.2712188]
[1738351524461,0.00040042,102480.0,102470.0,0.27024316]
[1738351525172,0.00040042,102480.0,102470.0,1.16526285]
[1738351525437,0.0002562,102490.0,102480.0,0.32637]
[1738351525673,0.0052562,102510.0,102500.0,0.173]
[1738351525926,0.0052562,102510.0,102500.0,0.27121837]
[1738351526174,0.0052562,102510.0,102500.0,0.27024316]
[1738351526412,0.0156013,102540.0,102500.0,0.96858416]
[1738351526413,0.03537532,102540.0,102500.0,0.96858416]
[1738351526685,0.01574539,102540.0,102530.0,0.023]
[1738351526936,0.01574539,102540.0,102530.0,0.27121811]
[1738351527185,0.01574539,102540.0,102530.0,1.05414116]
[1738351527427,0.01574539,102540.0,102530.0,1.06414116]
[1738351527665,0.01574539,102540.0,102530.0,0.27024316]
[1738351527937,0.16202939,102540.0,102530.0,0.09724316]
[1738351528605,0.01574539,102540.0,102520.0,0.00097515]
[1738351528885,0.01574539,102540.0,102520.0,0.09821832]
[1738351529142,0.01574539,102540.0,102530.0,0.008]
[1738351529389,0.01574539,102540.0,102530.0,0.00897516]
[1738351529632,0.01574539,102540.0,102530.0,0.00097516]
[1738351529879,0.01574539,102540.0,102530.0,0.09821832]
[1738351530818,0.01574539,102540.0,102520.0,0.006]
[1738351531076,0.01574539,102540.0,102520.0,0.10421832]
[1738351531330,0.01574539,102540.0,102530.0,0.09821832]
[1738351531569,0.01574539,102540.0,102530.0,0.10221832]
[1738351531800,0.01574539,102540.0,102530.0,0.12521832]
[1738351532069,0.01574539,102540.0,102530.0,0.27121832]
[1738351532329,0.01574539,102540.0,102530.0,0.27024316]
[1738351533022,0.01574539,102540.0,102530.0,0.27424316]
[1738351533256,0.01574539,102540.0,102530.0,0.12424316]
[1738351533511,0.01574539,102540.0,102530.0,0.004]
[1738351533732,0.02231593,102540.0,102530.0,0.004]
[1738351533952,0.1303,102530.0,102470.0,0.542]
[1738351534177,0.1303,102530.0,102480.0,0.09724316]
[1738351534178,1.19202494,102530.0,102480.0,0.09724316]
[1738351534432,0.0453,102510.0,102450.0,0.55195414]
[1738351534649,0.0074,102500.0,102460.0,0.09724316]
[1738351534888,0.0074,102500.0,102470.0,0.00097571]
[1738351535105,0.0527,102510.0,102480.0,0.09724316]
[1738351535311,0.0527,102510.0,102490.0,0.00097553]
[1738351535526,0.0527,102510.0,102490.0,0.09821869]
[1738351537765,0.0537,102510.0,102490.0,0.09821869]
[1738351540237,0.07363383,102510.0,102490.0,0.00097553]
[1738351540681,0.17087699,102510.0,102480.0,0.0001218]
[1738351541269,0.09724316,102500.0,102480.0,0.0001218]
[1738351541441,1.06172494,102500.0,102480.0,0.0001218]
[1738351541817,1.13902494,102500.0,102480.0,0.0001218]
[1738351542057,0.0773,102500.0,102480.0,0.0001218]
[1738351542282,1.04178178,102500.0,102480.0,0.0001218]
[1738351543560,1.13902494,102500.0,102480.0,0.0001218]
[1738351544385,1.14202494,102500.0,102480.0,0.0001218]
[1738351544593,0.14654316,102490.0,102480.0,0.0001218]
[1738351545140,0.0493,102490.0,102480.0,0.0011218]
[1738351545547,0.0493,102490.0,102480.0,0.0001218]
[1738351545761,0.0567,102490.0,102480.0,0.0001218]
[1738351545987,0.0597,102490.0,102480.0,0.0001218]
[1738351546425,0.0523,102490.0,102480.0,0.0001218]
[1738351546633,0.0597,102490.0,102480.0,0.0001218]
[1738351547084,0.30694316,102490.0,102480.0,0.0001218]
[1738351547300,0.33145354,102490.0,102480.0,0.0001218]
[1738351547535,0.15,102480.0,102420.0,0.0788]
[1738351547737,0.09724316,102470.0,102430.0,0.09738738]
[1738351547942,0.09724316,102470.0,102440.0,0.00097603]
[1738351549937,0.09724316,102470.0,102430.0,0.09738738]
[1738351550186,0.17694316,102470.0,102440.0,0.00097607]
[1738351550713,0.0074,102460.0,102440.0,0.00097607]
[1738351550978,0.97188178,102460.0,102440.0,0.00097607]
[1738351551565,0.96448178,102460.0,102440.0,0.09821923]
[1738351551830,0.0074,102470.0,102440.0,0.09821923]
[1738351552007,0.96448178,102460.0,102440.0,0.09821923]
[1738351552696,0.01974159,102460.0,102450.0,0.09724316]
[1738351553122,0.0074,102470.0,102450.0,0.09724316]
[1738351553330,0.0493,102490.0,102460.0,0.00097579]
[1738351553613,0.05822,102490.0,102460.0,0.09821895]
[1738351554271,0.0597867,102490.0,102460.0,0.09821895]
[1738351554952,0.0523867,102490.0,102470.0,0.09724316]
[1738351555196,0.0523867,102490.0,102480.0,0.00097568]
[1738351555634,0.07210287,102490.0,102480.0,0.00097568]
[1738351555842,0.07210287,102490.0,102480.0,0.00097569]
[1738351556255,0.07210287,102490.0,102470.0,0.09821885]
[1738351556463,0.07210287,102490.0,102450.0,0.023]
[1738351556676,0.07210287,102490.0,102450.0,0.00014422]
[1738351556677,0.10460316,102480.0,102450.0,0.00014422]
[1738351556882,1.04934178,102480.0,102450.0,0.09738738]
[1738351557311,1.14815164,102480.0,102450.0,0.00014422]
[1738351558487,0.0467,102460.0,102450.0,0.00014422]
[1738351558675,1.01118178,102460.0,102450.0,0.00014422]
[1738351559088,1.13593532,102460.0,102450.0,0.00014422]
[1738351559295,1.28390002,102460.0,102450.0,0.00012212]
[1738351559710,1.36610002,102460.0,102450.0,1.2e-07]
[1738351559918,1.36610002,102460.0,102450.0,0.00100012]
[1738351559919,1.39338953,102460.0,102450.0,0.00100012]
[1738351560707,1.39338953,102460.0,102450.0,0.10100012]
[1738351561176,1.47663183,102460.0,102450.0,0.10100012]
[1738351561384,1.40338953,102460.0,102450.0,0.10100012]
[1738351561730,1.39338953,102460.0,102450.0,0.10100012]
[1738351561939,1.33858964,102460.0,102450.0,0.10100012]
[1738351562143,1.36587915,102460.0,102450.0,0.10100012]
[1738351562354,1.39338953,102460.0,102450.0,0.10100012]
[1738351563011,1.54338953,102460.0,102450.0,0.10100012]
[1738351563337,0.146455,102420.0,102410.0,0.0009762]
[1738351563564,0.146498,102390.0,102380.0,0.1187958]
[1738351563771,0.146498,102390.0,102380.0,0.21603896]
[1738351563994,0.146498,102390.0,102380.0,0.17696496]
[1738351564131,0.14572208,102390.0,102380.0,0.17696496]
[1738351564560,0.14572208,102390.0,102380.0,0.17744574]
[1738351564758,0.14572208,102390.0,102380.0,0.21865392]
[1738351565163,0.14672208,102390.0,102380.0,0.22665392]
[1738351565392,0.14672208,102390.0,102380.0,0.23658335]
[1738351565568,0.001,102390.0,102380.0,0.23658335]
[1738351566220,0.001,102390.0,102380.0,0.53309535]
[1738351566353,0.001,102390.0,102380.0,0.38658335]
[1738351566768,0.001,102390.0,102380.0,0.53309535]
[1738351566980,0.001,102390.0,102380.0,0.38658335]
[1738351568819,0.001,102390.0,102380.0,0.23658335]
[1738351569055,0.001,102390.0,102380.0,0.12405392]
[1738351569296,0.001,102390.0,102380.0,0.12503046]
[1738351569972,0.001,102390.0,102380.0,0.00860258]
[1738351570198,0.0776,102410.0,102380.0,0.00060258]
[1738351570463,0.001,102390.0,102380.0,0.00660258]
[1738351570945,0.17484316,102410.0,102380.0,0.00060258]
[1738351571181,0.17484316,102410.0,102380.0,0.00560258]
[1738351572606,0.17484316,102410.0,102380.0,0.00060258]
[1738351573034,0.17484316,102410.0,102380.0,0.00160258]
[1738351573846,0.07484316,102410.0,102380.0,0.00160258]
[1738351574289,0.22484316,102410.0,102380.0,0.00160258]
[1738351574779,0.23484316,102410.0,102380.0,0.00160258]
[1738351575012,0.1983,102400.0,102380.0,0.00160258]
[1738351575252,1.26002494,102400.0,102380.0,0.00160258]
[1738351575981,1.26002494,102400.0,102380.0,0.00060258]
[1738351575982,0.00736,102390.0,102380.0,0.00060258]
[1738351576399,0.00736,102390.0,102380.0,0.00560258]
[1738351576899,0.00736,102390.0,102380.0,0.00060258]
[1738351577431,0.00736,102390.0,102380.0,0.00560258]
[1738351577921,1.01278178,102400.0,102380.0,0.00560258]
[1738351578161,1.01278178,102400.0,102380.0,0.10284574]
[1738351578162,0.0483,102400.0,102380.0,0.10284574]
[1738351578401,1.16018178,102420.0,102380.0,0.10382231]
[1738351578635,0.0931667,102440.0,102410.0,0.023]
[1738351578636,0.0015667,102440.0,102410.0,0.023]
[1738351578867,0.0015667,102440.0,102420.0,0.17441932]
[1738351579967,0.0025667,102440.0,102420.0,0.18241932]
[1738351580181,0.0027106,102440.0,102420.0,0.18241932]
[1738351580610,0.0027106,102440.0,102430.0,0.00097613]
[1738351580611,0.0017106,102440.0,102430.0,0.00097613]
[1738351581517,0.0017106,102440.0,102430.0,0.2712193]
[1738351581734,0.0017106,102440.0,102430.0,0.27024316]
[1738351582909,0.0017106,102440.0,102430.0,0.29339084]
[1738351583558,0.0017106,102440.0,102430.0,0.28839084]
[1738351583850,0.00196659,102440.0,102430.0,0.28839084]
[1738351584385,0.00196659,102440.0,102430.0,0.29539084]
[1738351585424,0.00196659,102440.0,102430.0,0.12239084]
[1738351585580,0.00196659,102440.0,102430.0,0.11539084]
[1738351585785,0.00196659,102440.0,102430.0,0.01912377]
[1738351585991,0.00196659,102440.0,102430.0,0.12136693]
[1738351586414,0.00196659,102440.0,102430.0,0.12121925]
[1738351586990,0.00196659,102440.0,102430.0,0.12721925]
[1738351587413,0.00196659,102440.0,102430.0,0.12121925]
[1738351588718,0.00196659,102440.0,102430.0,0.09724316]
[1738351588922,0.00196659,102440.0,102430.0,0.10321914]
[1738351589339,0.00196659,102440.0,102430.0,0.09821928]
[1738351589804,0.00196659,102440.0,102430.0,0.10421928]
[1738351590172,0.00196659,102440.0,102420.0,0.07717612]
[1738351590401,0.00196659,102440.0,102430.0,0.004]
[1738351593515,0.30650975,102440.0,102430.0,0.004]
[1738351593745,0.40993702,102440.0,102430.0,0.004]
[1738351593967,0.40993702,102440.0,102380.0,0.3997218]
[1738351593968,0.40993702,102440.0,102390.0,0.00097647]
[1738351594181,0.09724316,102430.0,102390.0,0.09821963]
[1738351594400,1.06172494,102430.0,102390.0,0.09821963]
[1738351595681,0.96448178,102430.0,102400.0,0.09821964]
[1738351596954,0.96448178,102430.0,102390.0,0.0010983]
[1738351596955,1.06172494,102430.0,102390.0,0.0010983]
[1738351597165,1.06172494,102430.0,102390.0,0.09834146]
[1738351597615,0.146484,102400.0,102390.0,0.09834146]
[1738351598934,0.146484,102400.0,102390.0,0.09882224]
[1738351599718,0.146484,102400.0,102390.0,0.12182224]
[1738351600579,0.146484,102400.0,102390.0,0.10382224]
[1738351600784,0.146484,102400.0,102390.0,0.10382235]
[1738351601421,0.146484,102400.0,102390.0,0.09882235]
[1738351601838,0.146484,102400.0,102390.0,0.12682235]
[1738351602810,0.146484,102400.0,102390.0,0.12182235]
[1738351604087,0.146484,102400.0,102390.0,0.12682235]
[1738351607597,0.146484,102400.0,102390.0,0.10382235]
[1738351608716,0.146484,102400.0,102390.0,0.09882235]
[1738351609166,0.146484,102400.0,102390.0,0.10382235]
[1738351610307,0.146484,102400.0,102390.0,0.09882235]
[1738351610582,0.146484,102400.0,102390.0,0.10382235]
[1738351611227,0.146484,102400.0,102390.0,0.12182235]
[1738351611433,0.146484,102400.0,102390.0,0.12682235]
[1738351611648,0.146484,102400.0,102390.0,0.22682235]
[1738351611857,0.146484,102400.0,102390.0,0.22584584]
[1738351615236,0.04912269,102440.0,102400.0,0.1025]
[1738351615437,0.04912269,102440.0,102410.0,0.09821936]
[1738351615438,0.00182269,102440.0,102410.0,0.09821936]
[1738351616389,0.00182269,102440.0,102420.0,0.023]
[1738351616577,0.00182269,102440.0,102430.0,0.09821932]
[1738351617870,0.00196659,102440.0,102430.0,0.09821932]
[1738351618091,0.00196659,102440.0,102430.0,0.10021932]
[1738351618302,0.00196659,102440.0,102430.0,0.12321932]
[1738351618510,0.00196659,102440.0,102430.0,0.20611932]
[1738351618708,0.00196659,102440.0,102430.0,0.20514316]
[1738351619904,0.00196659,102440.0,102430.0,0.002]
[1738351621280,0.00196659,102440.0,102400.0,0.078]
[1738351621412,0.96644837,102440.0,102410.0,0.09821948]
[1738351621616,0.96744837,102440.0,102410.0,0.09821948]
[1738351621861,0.0458,102430.0,102390.0,0.4240219]
[1738351622072,0.0458,102430.0,102390.0,0.19736506]
[1738351622073,0.21924316,102430.0,102390.0,0.19736506]
[1738351622281,0.09724316,102420.0,102390.0,0.1001219]
[1738351622482,1.06172494,102420.0,102410.0,0.001]
[1738351622894,1.01764178,102430.0,102410.0,0.001]
[1738351623139,0.00932659,102440.0,102400.0,0.00097641]
[1738351623352,0.10460316,102440.0,102400.0,0.09821957]
[1738351623556,0.00736,102440.0,102410.0,0.09724316]
[1738351623983,0.00736,102440.0,102420.0,0.07767633]
[1738351624187,0.00736,102440.0,102420.0,0.17491949]
[1738351624805,1.00998178,102450.0,102420.0,0.17491949]
[1738351625081,1.01734178,102450.0,102420.0,0.17540027]
[1738351625298,1.01734178,102450.0,102420.0,0.17442394]
[1738351625746,1.01734178,102450.0,102420.0,0.09772394]
[1738351625955,1.11458494,102450.0,102420.0,0.00048078]
[1738351626185,0.09724316,102440.0,102420.0,0.00048078]
[1738351626402,0.048,102430.0,102420.0,0.00048078]
[1738351626623,1.11972494,102430.0,102420.0,0.00048078]
[1738351626850,1.10972494,102430.0,102420.0,0.00048078]
[1738351627153,1.11972494,102430.0,102420.0,0.00048078]
[1738351627369,1.2170817,102430.0,102420.0,0.00048078]
[1738351628197,1.11972494,102430.0,102420.0,0.00048078]
[1738351628440,1.10972494,102430.0,102420.0,0.00048078]
[1738351628786,1.11972494,102430.0,102420.0,0.00048078]
[1738351631393,1.10972494,102430.0,102420.0,0.00048078]
[1738351631598,1.01248178,102430.0,102420.0,0.00048078]
[1738351631801,1.01984178,102430.0,102420.0,0.00048078]
[1738351633282,1.01248178,102430.0,102420.0,0.00048078]
[1738351633465,1.01984178,102430.0,102420.0,0.00048078]
[1738351634529,1.02184178,102430.0,102420.0,0.00048078]
[1738351635139,1.02184178,102430.0,102400.0,0.07910268]